[Event "Titled Tuesday Blitz February 28 Late 2023"]
[White "Huang, Alex"]
[Black "Pissama Ntsaou, Martial"]
[WhiteFideId "4302508"]
[BlackFideId "17400864"]
[WhiteElo "2029"]
[BlackElo "2077"]
[Result "1-0"]
[Round "08"]
[TimeControl "180+2"]
[Date "2023.02.28"]
[WhiteClock "0:00:12"]
[BlackClock "0:00:12"]

1. d4 {[%clk 0:03:00]}  d5 {[%clk 0:02:59]} 2. Bf4 {[%clk 0:03:00]}  Nf6 {[%clk 0:02:58]} 3. e3 {[%clk 0:03:00]}  c5 {[%clk 0:02:58]} 4. c3 {[%clk 0:02:59]}  Nc6 {[%clk 0:02:58]} 5. Nd2 {[%clk 0:02:59]}  cxd4 {[%clk 0:02:57]} 6. exd4 {[%clk 0:02:59]}  Bg4 {[%clk 0:02:58]} 7. Qb3 {[%clk 0:02:58]}  Qc8 {[%clk 0:02:56]} 8. Ngf3 {[%clk 0:02:55]}  e6 {[%clk 0:02:56]} 9. h3 {[%clk 0:02:55]}  Bh5 {[%clk 0:02:56]} 10. Bd3 {[%clk 0:02:45]}  Be7 {[%clk 0:02:55]} 11. O-O {[%clk 0:02:44]}  O-O {[%clk 0:02:55]} 12. Rfe1 {[%clk 0:02:41]}  Bg6 {[%clk 0:02:54]} 13. Bxg6 {[%clk 0:02:23]}  hxg6 {[%clk 0:02:53]} 14. Rac1 {[%clk 0:01:58]}  Na5 {[%clk 0:02:38]} 15. Qa4 {[%clk 0:01:55]}  Qd8 {[%clk 0:02:31]} 16. Ne5 {[%clk 0:01:47]}  Rc8 {[%clk 0:02:29]} 17. b4 {[%clk 0:01:30]}  Nc6 {[%clk 0:02:20]} 18. Nxc6 {[%clk 0:01:22]}  bxc6 {[%clk 0:02:13]} 19. Qxa7 {[%clk 0:00:59]}  Ra8 {[%clk 0:02:11]} 20. Qb7 {[%clk 0:01:00]}  Rxa2 {[%clk 0:02:10]} 21. Qxc6 {[%clk 0:00:57]}  Qc8 {[%clk 0:01:54]} 22. Qb5 {[%clk 0:00:48]}  Nh5 {[%clk 0:01:37]} 23. Be3 {[%clk 0:00:44]}  Qc7 {[%clk 0:01:31]} 24. Nb3 {[%clk 0:00:31]}  Nf4 {[%clk 0:00:55]} 25. Bxf4 {[%clk 0:00:20]}  Qxf4 {[%clk 0:00:55]} 26. Qf1 {[%clk 0:00:18]}  Bh4 {[%clk 0:00:41]} 27. Re2 {[%clk 0:00:13]}  Bxf2+ {[%clk 0:00:30]} 28. Rxf2 {[%clk 0:00:12]}  Rxf2 {[%clk 0:00:30]} 29. Qxf2 {[%clk 0:00:13]}  Qg5 {[%clk 0:00:30]} 30. Rf1 {[%clk 0:00:11]}  f6 {[%clk 0:00:29]} 31. Nc5 {[%clk 0:00:11]}  Re8 {[%clk 0:00:25]} 32. b5 {[%clk 0:00:11]}  e5 {[%clk 0:00:22]} 33. b6 {[%clk 0:00:12]}  exd4 {[%clk 0:00:22]} 34. cxd4 {[%clk 0:00:13]}  Re3 {[%clk 0:00:14]} 35. b7 {[%clk 0:00:12]}  Qxg2+ {[%clk 0:00:12]} 36. Qxg2 {[%clk 0:00:12]} 1-0


[Site "https://www.chess.com"]

[Event "Titled Tuesday Blitz February 28 Late 2023"]
[White "Sabar, Ethmane Daouda"]
[Black "Desideri, Ricardo Maruchi"]
[WhiteFideId "19600097"]
[BlackFideId "2110440"]
[WhiteElo "1950"]
[BlackElo "1945"]
[Result "0-1"]
[Round "08"]
[TimeControl "180+2"]
[Date "2023.02.28"]
[WhiteClock "0:00:09"]
[BlackClock "0:00:14"]

1. b3 {[%clk 0:03:00]}  e5 {[%clk 0:02:56]} 2. Bb2 {[%clk 0:03:01]}  Nc6 {[%clk 0:02:49]} 3. e3 {[%clk 0:03:02]}  d5 {[%clk 0:02:47]} 4. Bb5 {[%clk 0:02:59]}  Bd6 {[%clk 0:02:44]} 5. f4 {[%clk 0:02:59]}  Qe7 {[%clk 0:02:37]} 6. Nf3 {[%clk 0:02:52]}  Bg4 {[%clk 0:02:33]} 7. fxe5 {[%clk 0:02:05]}  Bxe5 {[%clk 0:02:24]} 8. Bxe5 {[%clk 0:01:40]}  Bxf3 {[%clk 0:02:12]} 9. Qxf3 {[%clk 0:01:40]}  Qxe5 {[%clk 0:02:11]} 10. O-O {[%clk 0:01:40]}  Nf6 {[%clk 0:01:48]} 11. Bxc6+ {[%clk 0:01:40]}  bxc6 {[%clk 0:01:47]} 12. Nc3 {[%clk 0:01:35]}  O-O {[%clk 0:01:45]} 13. Qf4 {[%clk 0:01:34]}  Qe7 {[%clk 0:01:34]} 14. Rf3 {[%clk 0:01:24]}  Rae8 {[%clk 0:01:19]} 15. Raf1 {[%clk 0:01:23]}  Ne4 {[%clk 0:01:15]} 16. Nxe4 {[%clk 0:01:20]}  Qxe4 {[%clk 0:01:13]} 17. Qxe4 {[%clk 0:01:18]}  Rxe4 {[%clk 0:01:13]} 18. Rf4 {[%clk 0:01:18]}  Re7 {[%clk 0:01:02]} 19. Ra4 {[%clk 0:01:14]}  Ra8 {[%clk 0:00:58]} 20. Ra6 {[%clk 0:01:14]}  Re6 {[%clk 0:00:55]} 21. Rf4 {[%clk 0:01:13]}  c5 {[%clk 0:00:50]} 22. Rfa4 {[%clk 0:01:13]}  Rxa6 {[%clk 0:00:49]} 23. Rxa6 {[%clk 0:01:14]}  d4 {[%clk 0:00:46]} 24. exd4 {[%clk 0:01:12]}  cxd4 {[%clk 0:00:46]} 25. Rc6 {[%clk 0:00:58]}  Rc8 {[%clk 0:00:45]} 26. Rc4 {[%clk 0:00:56]}  d3 {[%clk 0:00:42]} 27. cxd3 {[%clk 0:00:52]}  g6 {[%clk 0:00:41]} 28. d4 {[%clk 0:00:52]}  Kg7 {[%clk 0:00:41]} 29. Kf2 {[%clk 0:00:51]}  Kf6 {[%clk 0:00:41]} 30. Rc6+ {[%clk 0:00:46]}  Kf5 {[%clk 0:00:41]} 31. Ke3 {[%clk 0:00:44]}  Re8+ {[%clk 0:00:40]} 32. Kd3 {[%clk 0:00:44]}  Re7 {[%clk 0:00:40]} 33. Kc4 {[%clk 0:00:38]}  Ke4 {[%clk 0:00:37]} 34. d3+ {[%clk 0:00:36]}  Ke3 {[%clk 0:00:37]} 35. d5 {[%clk 0:00:33]}  Kf2 {[%clk 0:00:35]} 36. g4 {[%clk 0:00:30]}  Kg2 {[%clk 0:00:33]} 37. h4 {[%clk 0:00:22]}  Kg3 {[%clk 0:00:33]} 38. h5 {[%clk 0:00:21]}  Kxg4 {[%clk 0:00:32]} 39. hxg6 {[%clk 0:00:21]}  hxg6 {[%clk 0:00:32]} 40. Kc5 {[%clk 0:00:16]}  Kf5 {[%clk 0:00:26]} 41. d4 {[%clk 0:00:13]}  g5 {[%clk 0:00:26]} 42. d6 {[%clk 0:00:13]}  cxd6+ {[%clk 0:00:25]} 43. Rxd6 {[%clk 0:00:13]}  g4 {[%clk 0:00:24]} 44. Rd5+ {[%clk 0:00:09]}  Kf4 {[%clk 0:00:23]} 45. Rh5 {[%clk 0:00:07]}  g3 {[%clk 0:00:23]} 46. Rh8 {[%clk 0:00:08]}  Re6 {[%clk 0:00:21]} 47. d5 {[%clk 0:00:08]}  Rg6 {[%clk 0:00:20]} 48. Rh1 {[%clk 0:00:07]}  g2 {[%clk 0:00:20]} 49. Rg1 {[%clk 0:00:07]}  Kf3 {[%clk 0:00:20]} 50. d6 {[%clk 0:00:08]}  Kf2 {[%clk 0:00:20]} 51. Rd1 {[%clk 0:00:06]}  g1=Q {[%clk 0:00:19]} 52. Rxg1 {[%clk 0:00:06]}  Kxg1 {[%clk 0:00:20]} 53. d7 {[%clk 0:00:06]}  Rg8 {[%clk 0:00:17]} 54. Kd5 {[%clk 0:00:04]}  f5 {[%clk 0:00:18]} 55. Ke5 {[%clk 0:00:03]}  f4 {[%clk 0:00:18]} 56. Kxf4 {[%clk 0:00:03]}  Rd8 {[%clk 0:00:17]} 57. Ke5 {[%clk 0:00:04]}  Rxd7 {[%clk 0:00:17]} 58. b4 {[%clk 0:00:05]}  Rb7 {[%clk 0:00:17]} 59. a3 {[%clk 0:00:04]}  Kf2 {[%clk 0:00:18]} 60. Kd5 {[%clk 0:00:04]}  Ke3 {[%clk 0:00:18]} 61. Kc5 {[%clk 0:00:04]}  Kd3 {[%clk 0:00:18]} 62. b5 {[%clk 0:00:04]}  Kc3 {[%clk 0:00:18]} 63. a4 {[%clk 0:00:05]}  Kb3 {[%clk 0:00:17]} 64. a5 {[%clk 0:00:04]}  Ka4 {[%clk 0:00:17]} 65. Kc6 {[%clk 0:00:03]}  Rxb5 {[%clk 0:00:17]} 66. a6 {[%clk 0:00:03]}  Rb6+ {[%clk 0:00:16]} 67. Kc7 {[%clk 0:00:03]}  Rxa6 {[%clk 0:00:16]} 68. Kb7 {[%clk 0:00:04]}  Ra5 {[%clk 0:00:15]} 69. Ka8 {[%clk 0:00:05]}  Kb5 {[%clk 0:00:15]} 70. Kb7 {[%clk 0:00:06]}  Ra2 {[%clk 0:00:14]} 71. Ka8 {[%clk 0:00:07]}  a5 {[%clk 0:00:14]} 72. Kb7 {[%clk 0:00:08]}  a4 {[%clk 0:00:14]} 73. Ka7 {[%clk 0:00:09]}  Rb2 {[%clk 0:00:14]} 0-1


[Site "https://www.chess.com"]

[Event "Titled Tuesday Blitz February 28 Late 2023"]
[White "Kujawski, Adam"]
[Black "Levine, David"]
[WhiteFideId "1100920"]
[BlackFideId "2011611"]
[WhiteElo "2054"]
[BlackElo "2117"]
[Result "1/2-1/2"]
[Round "08"]
[TimeControl "180+2"]
[Date "2023.02.28"]
[WhiteClock "0:00:08"]
[BlackClock "0:00:04"]

1. e4 {[%clk 0:02:57]}  e5 {[%clk 0:02:59]} 2. Nf3 {[%clk 0:02:56]}  Nc6 {[%clk 0:02:59]} 3. Bb5 {[%clk 0:02:57]}  a6 {[%clk 0:02:59]} 4. Ba4 {[%clk 0:02:57]}  Nf6 {[%clk 0:02:59]} 5. O-O {[%clk 0:02:57]}  Be7 {[%clk 0:02:58]} 6. Re1 {[%clk 0:02:57]}  b5 {[%clk 0:02:58]} 7. Bb3 {[%clk 0:02:57]}  d6 {[%clk 0:02:58]} 8. c3 {[%clk 0:02:56]}  O-O {[%clk 0:02:57]} 9. h3 {[%clk 0:02:57]}  Bb7 {[%clk 0:02:57]} 10. d4 {[%clk 0:02:53]}  Re8 {[%clk 0:02:56]} 11. Ng5 {[%clk 0:02:52]}  Rf8 {[%clk 0:02:55]} 12. Nf3 {[%clk 0:02:52]}  Re8 {[%clk 0:02:55]} 13. Nbd2 {[%clk 0:02:53]}  Bf8 {[%clk 0:02:54]} 14. a4 {[%clk 0:02:52]}  h6 {[%clk 0:02:51]} 15. Bc2 {[%clk 0:02:52]}  Nb8 {[%clk 0:02:45]} 16. d5 {[%clk 0:02:50]}  c6 {[%clk 0:02:43]} 17. dxc6 {[%clk 0:02:47]}  Bxc6 {[%clk 0:02:42]} 18. Nf1 {[%clk 0:02:46]}  Nbd7 {[%clk 0:02:37]} 19. Ng3 {[%clk 0:02:38]}  g6 {[%clk 0:02:37]} 20. b4 {[%clk 0:02:36]}  a5 {[%clk 0:02:21]} 21. axb5 {[%clk 0:02:29]}  Bxb5 {[%clk 0:02:21]} 22. Bb3 {[%clk 0:02:23]}  axb4 {[%clk 0:02:19]} 23. Rxa8 {[%clk 0:02:22]}  Qxa8 {[%clk 0:02:19]} 24. cxb4 {[%clk 0:02:23]}  Bc6 {[%clk 0:02:13]} 25. Qc2 {[%clk 0:02:12]}  d5 {[%clk 0:01:49]} 26. b5 {[%clk 0:01:28]}  Bb7 {[%clk 0:01:40]} 27. exd5 {[%clk 0:01:00]}  Bxd5 {[%clk 0:01:40]} 28. Rd1 {[%clk 0:00:53]}  Bxb3 {[%clk 0:01:19]} 29. Qxb3 {[%clk 0:00:52]}  Qb7 {[%clk 0:01:04]} 30. Be3 {[%clk 0:00:45]}  Nc5 {[%clk 0:00:58]} 31. Qc4 {[%clk 0:00:31]}  Rc8 {[%clk 0:00:40]} 32. Nxe5 {[%clk 0:00:30]}  Nce4 {[%clk 0:00:31]} 33. Qb3 {[%clk 0:00:25]}  Nxg3 {[%clk 0:00:23]} 34. fxg3 {[%clk 0:00:26]}  Re8 {[%clk 0:00:22]} 35. Bf4 {[%clk 0:00:24]}  g5 {[%clk 0:00:19]} 36. Nxf7 {[%clk 0:00:14]}  Qxf7 {[%clk 0:00:16]} 37. Qxf7+ {[%clk 0:00:15]}  Kxf7 {[%clk 0:00:16]} 38. Bc7 {[%clk 0:00:15]}  Bc5+ {[%clk 0:00:10]} 39. Kh2 {[%clk 0:00:14]}  Re6 {[%clk 0:00:10]} 40. Rc1 {[%clk 0:00:12]}  Bb6 {[%clk 0:00:09]} 41. Bxb6 {[%clk 0:00:10]}  Rxb6 {[%clk 0:00:09]} 42. Rc7+ {[%clk 0:00:11]}  Kg6 {[%clk 0:00:09]} 43. g4 {[%clk 0:00:11]}  Rxb5 {[%clk 0:00:07]} 44. Rc4 {[%clk 0:00:10]}  Rb3 {[%clk 0:00:07]} 45. Ra4 {[%clk 0:00:10]}  Rb6 {[%clk 0:00:07]} 46. Rc4 {[%clk 0:00:11]}  Rd6 {[%clk 0:00:06]} 47. Ra4 {[%clk 0:00:11]}  Rd2 {[%clk 0:00:06]} 48. Rb4 {[%clk 0:00:12]}  h5 {[%clk 0:00:05]} 49. gxh5+ {[%clk 0:00:11]}  Kxh5 {[%clk 0:00:04]} 50. Rb6 {[%clk 0:00:11]}  Kg6 {[%clk 0:00:03]} 51. Kg3 {[%clk 0:00:09]}  Rd3+ {[%clk 0:00:03]} 52. Kh2 {[%clk 0:00:09]}  Rd2 {[%clk 0:00:03]} 53. Kg3 {[%clk 0:00:08]}  Rd3+ {[%clk 0:00:03]} 54. Kh2 {[%clk 0:00:08]}  Rd2 {[%clk 0:00:04]} 1/2-1/2


[Site "https://www.chess.com"]

[Event "Titled Tuesday Blitz February 28 Late 2023"]
[White "Gerbelli Neto, Eduardo"]
[Black "Souza, Gustavo Horokoski De"]
[WhiteFideId "2103281"]
[BlackFideId "2146584"]
[WhiteElo "2178"]
[BlackElo "1859"]
[Result "1-0"]
[Round "08"]
[TimeControl "180+2"]
[Date "2023.02.28"]
[WhiteClock "0:00:56"]
[BlackClock "0:00:04"]

1. e4 {[%clk 0:03:00]}  e6 {[%clk 0:02:59]} 2. d4 {[%clk 0:03:00]}  d5 {[%clk 0:02:59]} 3. Nc3 {[%clk 0:03:00]}  Nf6 {[%clk 0:02:58]} 4. e5 {[%clk 0:03:00]}  Nfd7 {[%clk 0:02:59]} 5. Nf3 {[%clk 0:03:01]}  c5 {[%clk 0:02:59]} 6. dxc5 {[%clk 0:03:02]}  Bxc5 {[%clk 0:02:54]} 7. Bd3 {[%clk 0:03:01]}  Nc6 {[%clk 0:02:53]} 8. Bf4 {[%clk 0:03:00]}  a6 {[%clk 0:02:42]} 9. O-O {[%clk 0:02:59]}  h6 {[%clk 0:02:40]} 10. h4 {[%clk 0:02:58]}  Be7 {[%clk 0:02:36]} 11. h5 {[%clk 0:02:54]}  O-O {[%clk 0:02:35]} 12. Qd2 {[%clk 0:02:51]}  f5 {[%clk 0:02:26]} 13. exf6 {[%clk 0:02:42]}  Rxf6 {[%clk 0:02:18]} 14. Bg3 {[%clk 0:02:34]}  Nc5 {[%clk 0:02:00]} 15. Bg6 {[%clk 0:02:27]}  Bd7 {[%clk 0:01:44]} 16. Ne5 {[%clk 0:02:14]}  Be8 {[%clk 0:01:36]} 17. Rfe1 {[%clk 0:01:55]}  Nd7 {[%clk 0:00:30]} 18. Ng4 {[%clk 0:01:40]}  Rf8 {[%clk 0:00:24]} 19. Rxe6 {[%clk 0:01:34]}  Bxg6 {[%clk 0:00:20]} 20. Rxg6 {[%clk 0:01:33]}  Bg5 {[%clk 0:00:15]} 21. Nxh6+ {[%clk 0:01:22]}  Bxh6 {[%clk 0:00:16]} 22. Qxh6 {[%clk 0:01:22]}  Qe7 {[%clk 0:00:16]} 23. Nxd5 {[%clk 0:01:17]}  Qf7 {[%clk 0:00:16]} 24. Qg5 {[%clk 0:01:00]}  Rae8 {[%clk 0:00:06]} 25. h6 {[%clk 0:00:57]}  Kh8 {[%clk 0:00:04]} 26. hxg7+ {[%clk 0:00:56]} 1-0


[Site "https://www.chess.com"]

[Event "Titled Tuesday Blitz February 28 Late 2023"]
[White "Burke, Paul"]
[Black "Santos Ruiz, Miguel"]
[WhiteFideId "2605767"]
[BlackFideId "22291482"]
[WhiteElo "1893"]
[BlackElo "2504"]
[Result "0-1"]
[Round "08"]
[TimeControl "180+2"]
[Date "2023.02.28"]
[WhiteClock "0:00:54"]
[BlackClock "0:01:08"]

1. e4 {[%clk 0:02:53]}  c5 {[%clk 0:03:00]} 2. d4 {[%clk 0:02:51]}  cxd4 {[%clk 0:03:00]} 3. c3 {[%clk 0:02:51]}  dxc3 {[%clk 0:02:58]} 4. Nxc3 {[%clk 0:02:51]}  d6 {[%clk 0:02:55]} 5. Nf3 {[%clk 0:02:51]}  Nc6 {[%clk 0:02:53]} 6. Bc4 {[%clk 0:02:51]}  Nf6 {[%clk 0:02:53]} 7. e5 {[%clk 0:02:50]}  dxe5 {[%clk 0:02:45]} 8. Qxd8+ {[%clk 0:02:49]}  Nxd8 {[%clk 0:02:44]} 9. Nb5 {[%clk 0:02:49]}  Nc6 {[%clk 0:01:35]} 10. Nc7+ {[%clk 0:02:47]}  Kd8 {[%clk 0:01:35]} 11. Nxa8 {[%clk 0:02:47]}  e6 {[%clk 0:01:33]} 12. Bg5 {[%clk 0:02:42]}  Bd7 {[%clk 0:01:32]} 13. O-O-O {[%clk 0:02:36]}  Kc8 {[%clk 0:01:32]} 14. Bb5 {[%clk 0:02:26]}  Ng4 {[%clk 0:01:30]} 15. Bxc6 {[%clk 0:02:17]}  bxc6 {[%clk 0:01:30]} 16. Rhf1 {[%clk 0:02:04]}  f6 {[%clk 0:01:30]} 17. h3 {[%clk 0:01:50]}  e4 {[%clk 0:01:20]} 18. Bf4 {[%clk 0:01:27]}  exf3 {[%clk 0:01:17]} 19. hxg4 {[%clk 0:01:23]}  fxg2 {[%clk 0:01:17]} 20. Rg1 {[%clk 0:01:23]}  e5 {[%clk 0:01:17]} 21. Be3 {[%clk 0:01:22]}  Bxg4 {[%clk 0:01:17]} 22. Rde1 {[%clk 0:01:13]}  Bf3 {[%clk 0:01:16]} 23. Bxa7 {[%clk 0:01:11]}  Kb7 {[%clk 0:01:15]} 24. Nb6 {[%clk 0:00:59]}  Kxa7 {[%clk 0:01:15]} 25. Nc4 {[%clk 0:00:56]}  Bc5 {[%clk 0:01:09]} 26. Ne3 {[%clk 0:00:54]}  h5 {[%clk 0:01:08]} 0-1


[Site "https://www.chess.com"]

[Event "Titled Tuesday Blitz February 28 Late 2023"]
[White "Firouzja, Alireza"]
[Black "Carlsen, Magnus"]
[WhiteFideId "12573981"]
[BlackFideId "1503014"]
[WhiteElo "2904"]
[BlackElo "2852"]
[Result "1/2-1/2"]
[Round "09"]
[TimeControl "180+2"]
[Date "2023.02.28"]
[WhiteClock "0:00:06"]
[BlackClock "0:00:06"]

1. e4 {[%clk 0:03:00]}  e5 {[%clk 0:00:41]} 2. Nf3 {[%clk 0:02:56]}  Nc6 {[%clk 0:00:41]} 3. Bb5 {[%clk 0:02:54]}  a6 {[%clk 0:00:41]} 4. Ba4 {[%clk 0:02:53]}  Nf6 {[%clk 0:00:41]} 5. O-O {[%clk 0:02:51]}  Be7 {[%clk 0:00:41]} 6. Re1 {[%clk 0:02:51]}  b5 {[%clk 0:00:41]} 7. Bb3 {[%clk 0:02:52]}  O-O {[%clk 0:00:41]} 8. d3 {[%clk 0:02:48]}  d6 {[%clk 0:00:41]} 9. c3 {[%clk 0:02:46]}  Na5 {[%clk 0:00:42]} 10. Bc2 {[%clk 0:02:47]}  c5 {[%clk 0:00:42]} 11. Nbd2 {[%clk 0:02:47]}  Nc6 {[%clk 0:00:42]} 12. Nf1 {[%clk 0:02:43]}  h6 {[%clk 0:00:42]} 13. h3 {[%clk 0:02:40]}  Re8 {[%clk 0:00:42]} 14. Ne3 {[%clk 0:02:38]}  Be6 {[%clk 0:00:42]} 15. Nh2 {[%clk 0:02:28]}  d5 {[%clk 0:00:42]} 16. Qf3 {[%clk 0:02:28]}  d4 {[%clk 0:00:41]} 17. Nf5 {[%clk 0:02:28]}  Bf8 {[%clk 0:00:41]} 18. Bb3 {[%clk 0:01:54]}  c4 {[%clk 0:00:32]} 19. dxc4 {[%clk 0:01:55]}  bxc4 {[%clk 0:00:33]} 20. Ba4 {[%clk 0:01:55]}  Rc8 {[%clk 0:00:34]} 21. Ng4 {[%clk 0:01:24]}  Bxf5 {[%clk 0:00:29]} 22. exf5 {[%clk 0:01:08]}  e4 {[%clk 0:00:27]} 23. Nxf6+ {[%clk 0:00:52]}  Qxf6 {[%clk 0:00:27]} 24. Rxe4 {[%clk 0:00:53]}  Rxe4 {[%clk 0:00:28]} 25. Qxe4 {[%clk 0:00:53]}  dxc3 {[%clk 0:00:29]} 26. bxc3 {[%clk 0:00:50]}  Qxc3 {[%clk 0:00:29]} 27. Rb1 {[%clk 0:00:50]}  Qd3 {[%clk 0:00:16]} 28. Qxd3 {[%clk 0:00:41]}  cxd3 {[%clk 0:00:17]} 29. Be3 {[%clk 0:00:38]}  Ne5 {[%clk 0:00:13]} 30. Rd1 {[%clk 0:00:39]}  Rd8 {[%clk 0:00:08]} 31. Bb3 {[%clk 0:00:37]}  a5 {[%clk 0:00:08]} 32. Bb6 {[%clk 0:00:29]}  Ra8 {[%clk 0:00:05]} 33. Bc7 {[%clk 0:00:28]}  Nd7 {[%clk 0:00:03]} 34. Rxd3 {[%clk 0:00:25]}  Nc5 {[%clk 0:00:03]} 35. Rd5 {[%clk 0:00:21]}  Nxb3 {[%clk 0:00:03]} 36. axb3 {[%clk 0:00:22]}  a4 {[%clk 0:00:03]} 37. bxa4 {[%clk 0:00:22]}  Rxa4 {[%clk 0:00:04]} 38. Rd8 {[%clk 0:00:20]}  Ra6 {[%clk 0:00:05]} 39. g4 {[%clk 0:00:16]}  f6 {[%clk 0:00:05]} 40. Kg2 {[%clk 0:00:17]}  Rc6 {[%clk 0:00:06]} 41. Bf4 {[%clk 0:00:16]}  Kf7 {[%clk 0:00:06]} 42. Rd7+ {[%clk 0:00:17]}  Be7 {[%clk 0:00:06]} 43. Rb7 {[%clk 0:00:17]}  Kf8 {[%clk 0:00:06]} 44. Kf3 {[%clk 0:00:16]}  Rc3+ {[%clk 0:00:06]} 45. Kg2 {[%clk 0:00:12]}  Rc4 {[%clk 0:00:06]} 46. Be3 {[%clk 0:00:12]}  Rc2 {[%clk 0:00:06]} 47. Kf3 {[%clk 0:00:12]}  Rc3 {[%clk 0:00:06]} 48. Ke4 {[%clk 0:00:12]}  Bc5 {[%clk 0:00:02]} 49. Rc7 {[%clk 0:00:12]}  Bd4 {[%clk 0:00:01]} 50. Rxc3 {[%clk 0:00:07]}  Bxc3 {[%clk 0:00:02]} 51. Kd5 {[%clk 0:00:07]}  Kf7 {[%clk 0:00:03]} 52. h4 {[%clk 0:00:05]}  Bb2 {[%clk 0:00:03]} 53. Ke4 {[%clk 0:00:05]}  Ba3 {[%clk 0:00:03]} 54. f4 {[%clk 0:00:04]}  Bb4 {[%clk 0:00:03]} 55. g5 {[%clk 0:00:03]}  fxg5 {[%clk 0:00:04]} 56. fxg5 {[%clk 0:00:03]}  hxg5 {[%clk 0:00:04]} 57. hxg5 {[%clk 0:00:03]}  g6 {[%clk 0:00:05]} 58. fxg6+ {[%clk 0:00:04]}  Kxg6 {[%clk 0:00:05]} 59. Bf4 {[%clk 0:00:05]}  Be7 {[%clk 0:00:05]} 60. Be3 {[%clk 0:00:06]}  Bxg5 {[%clk 0:00:06]} 1/2-1/2


[Site "https://www.chess.com"]

[Event "Titled Tuesday Blitz February 28 Late 2023"]
[White "Nakamura, Hikaru"]
[Black "Kamsky, Gata"]
[WhiteFideId "2016192"]
[BlackFideId "2000024"]
[WhiteElo "2879"]
[BlackElo "2666"]
[Result "1/2-1/2"]
[Round "09"]
[TimeControl "180+2"]
[Date "2023.02.28"]
[WhiteClock "0:00:02"]
[BlackClock "0:00:09"]

1. Nf3 {[%clk 0:02:50]}  Nf6 {[%clk 0:02:59]} 2. g3 {[%clk 0:02:48]}  g6 {[%clk 0:02:59]} 3. d3 {[%clk 0:02:46]}  Bg7 {[%clk 0:02:59]} 4. e4 {[%clk 0:02:45]}  d5 {[%clk 0:02:36]} 5. e5 {[%clk 0:02:44]}  Ng4 {[%clk 0:02:21]} 6. d4 {[%clk 0:02:43]}  f6 {[%clk 0:02:18]} 7. h3 {[%clk 0:02:26]}  Nh6 {[%clk 0:02:17]} 8. Bg2 {[%clk 0:02:25]}  Nf7 {[%clk 0:02:15]} 9. exf6 {[%clk 0:02:25]}  exf6 {[%clk 0:02:14]} 10. O-O {[%clk 0:02:24]}  O-O {[%clk 0:02:14]} 11. Re1 {[%clk 0:02:24]}  c6 {[%clk 0:02:11]} 12. Nbd2 {[%clk 0:02:20]}  Na6 {[%clk 0:02:11]} 13. b3 {[%clk 0:02:15]}  Nc7 {[%clk 0:02:09]} 14. Nf1 {[%clk 0:02:15]}  Nd6 {[%clk 0:02:06]} 15. a4 {[%clk 0:02:04]}  a5 {[%clk 0:02:05]} 16. Ba3 {[%clk 0:02:00]}  Rf7 {[%clk 0:02:01]} 17. Ne3 {[%clk 0:01:57]}  Nf5 {[%clk 0:01:49]} 18. c4 {[%clk 0:01:51]}  Nxe3 {[%clk 0:01:48]} 19. Rxe3 {[%clk 0:01:52]}  Bh6 {[%clk 0:01:44]} 20. Re2 {[%clk 0:01:48]}  Bf5 {[%clk 0:01:44]} 21. Nh4 {[%clk 0:01:44]}  Be6 {[%clk 0:01:43]} 22. Qd3 {[%clk 0:01:44]}  Qd7 {[%clk 0:01:36]} 23. Rae1 {[%clk 0:01:44]}  Bf8 {[%clk 0:01:15]} 24. Bxf8 {[%clk 0:01:33]}  Raxf8 {[%clk 0:01:14]} 25. Kh2 {[%clk 0:01:30]}  Re8 {[%clk 0:01:11]} 26. Qc3 {[%clk 0:01:19]}  Rfe7 {[%clk 0:01:06]} 27. c5 {[%clk 0:01:02]}  Ra8 {[%clk 0:01:03]} 28. g4 {[%clk 0:00:57]}  Ree8 {[%clk 0:01:00]} 29. Qg3 {[%clk 0:00:57]}  Rad8 {[%clk 0:00:55]} 30. f4 {[%clk 0:00:52]}  Bf7 {[%clk 0:00:53]} 31. f5 {[%clk 0:00:52]}  g5 {[%clk 0:00:51]} 32. Nf3 {[%clk 0:00:51]}  Na6 {[%clk 0:00:45]} 33. Re3 {[%clk 0:00:38]}  Rxe3 {[%clk 0:00:40]} 34. Rxe3 {[%clk 0:00:38]}  Re8 {[%clk 0:00:40]} 35. Qe1 {[%clk 0:00:38]}  Qc7+ {[%clk 0:00:36]} 36. Kg1 {[%clk 0:00:38]}  Rxe3 {[%clk 0:00:36]} 37. Qxe3 {[%clk 0:00:39]}  Nb4 {[%clk 0:00:36]} 38. h4 {[%clk 0:00:38]}  h6 {[%clk 0:00:32]} 39. hxg5 {[%clk 0:00:38]}  hxg5 {[%clk 0:00:32]} 40. Kf2 {[%clk 0:00:38]}  Qd8 {[%clk 0:00:30]} 41. Ne1 {[%clk 0:00:35]}  Kg7 {[%clk 0:00:28]} 42. Qg3 {[%clk 0:00:34]}  Kf8 {[%clk 0:00:25]} 43. Qh2 {[%clk 0:00:33]}  Kg7 {[%clk 0:00:25]} 44. Bf3 {[%clk 0:00:32]}  Bg8 {[%clk 0:00:25]} 45. Be2 {[%clk 0:00:31]}  Bf7 {[%clk 0:00:25]} 46. Qg3 {[%clk 0:00:29]}  Kf8 {[%clk 0:00:25]} 47. Bd1 {[%clk 0:00:28]}  Kg7 {[%clk 0:00:24]} 48. Nc2 {[%clk 0:00:28]}  Nxc2 {[%clk 0:00:23]} 49. Bxc2 {[%clk 0:00:29]}  Be8 {[%clk 0:00:22]} 50. Ke2 {[%clk 0:00:26]}  Kf8 {[%clk 0:00:21]} 51. Kd2 {[%clk 0:00:27]}  Kg7 {[%clk 0:00:20]} 52. Kc3 {[%clk 0:00:27]}  Kf8 {[%clk 0:00:19]} 53. b4 {[%clk 0:00:26]}  Ke7 {[%clk 0:00:16]} 54. Kb3 {[%clk 0:00:24]}  axb4 {[%clk 0:00:12]} 55. Kxb4 {[%clk 0:00:25]}  Bf7 {[%clk 0:00:10]} 56. a5 {[%clk 0:00:20]}  Ke8 {[%clk 0:00:09]} 57. Bd3 {[%clk 0:00:20]}  Ke7 {[%clk 0:00:09]} 58. a6 {[%clk 0:00:17]}  bxa6 {[%clk 0:00:09]} 59. Bxa6 {[%clk 0:00:18]}  Be8 {[%clk 0:00:09]} 60. Bb7 {[%clk 0:00:16]}  Qd7 {[%clk 0:00:06]} 61. Qb8 {[%clk 0:00:15]}  Qd8 {[%clk 0:00:06]} 62. Qa7 {[%clk 0:00:14]}  Qc7 {[%clk 0:00:06]} 63. Qb6 {[%clk 0:00:14]}  Kd8 {[%clk 0:00:06]} 64. Ka5 {[%clk 0:00:13]}  Bd7 {[%clk 0:00:07]} 65. Ka6 {[%clk 0:00:12]}  Be8 {[%clk 0:00:06]} 66. Ka7 {[%clk 0:00:13]}  Bd7 {[%clk 0:00:07]} 67. Ka6 {[%clk 0:00:13]}  Be8 {[%clk 0:00:07]} 68. Ka5 {[%clk 0:00:12]}  Bd7 {[%clk 0:00:07]} 69. Ba6 {[%clk 0:00:12]}  Be8 {[%clk 0:00:08]} 70. Kb4 {[%clk 0:00:13]}  Bd7 {[%clk 0:00:08]} 71. Be2 {[%clk 0:00:13]}  Be8 {[%clk 0:00:08]} 72. Kc3 {[%clk 0:00:13]}  Kd7 {[%clk 0:00:08]} 73. Bd1 {[%clk 0:00:12]}  Qg3+ {[%clk 0:00:08]} 74. Kd2 {[%clk 0:00:07]}  Qf2+ {[%clk 0:00:08]} 75. Kd3 {[%clk 0:00:08]}  Qg3+ {[%clk 0:00:08]} 76. Kc2 {[%clk 0:00:08]}  Qf2+ {[%clk 0:00:08]} 77. Kd3 {[%clk 0:00:03]}  Qg3+ {[%clk 0:00:09]} 78. Kc2 {[%clk 0:00:02]}  Qf2+ {[%clk 0:00:09]} 79. Kd3 {[%clk 0:00:02]} 1/2-1/2


[Site "https://www.chess.com"]